fUST/lending_fUST_20250903
["ID","MTS","AMOUNT","RATE_DAILY","PERIOD"]
[383254398,1756894253361,-480.0,0.00014794,2]
[383254400,1756894253370,-480.0,0.00014794,2]
[383254402,1756894253379,-480.0,0.00014794,2]
[383254404,1756894253388,-480.0,0.00014794,2]
[383254405,1756894253398,-1262.9,0.00014794,2]
[383254406,1756894253407,-1423.69,0.00014794,2]
[383254407,1756894253416,-480.0,0.00014794,2]
[383254408,1756894253427,-609.7,0.00014794,2]
[383254409,1756894253436,-480.0,0.00014794,2]
[383254410,1756894253445,-480.0,0.00014794,2]
[383254411,1756894253454,-528.81,0.00014794,2]
[383254412,1756894253465,-480.0,0.00014794,2]
[383254413,1756894253474,-480.0,0.00014794,2]
[383254414,1756894253483,-275.88415978,0.00014794,2]
[383254415,1756894253492,-2285.03,0.00014794,2]
[383254417,1756894253501,-480.0,0.00014794,2]
[383254419,1756894253510,-518.52,0.00014794,2]
[383254421,1756894253519,-480.0,0.00014794,2]
[383254423,1756894253528,-480.0,0.00014794,2]
[383254425,1756894253538,-690.45,0.00014794,2]
[383254427,1756894253546,-657.71,0.00014794,2]
[383254428,1756894253556,-480.0,0.00014794,2]
[383254430,1756894253565,-334.72114974,0.00014794,2]
[383254433,1756894253575,-1022.56,0.00014794,2]
[383254434,1756894253584,-480.0,0.00014794,2]
[383254436,1756894253593,-480.0,0.00014794,2]
[383254438,1756894253602,-480.0,0.00014794,2]
[383254441,1756894253612,-151.0,0.000148,2]
[383254442,1756894253621,-151.0,0.000148,2]
[383254444,1756894253631,-445.0,0.00014842,2]
[383254447,1756894253640,-445.0,0.00014868,2]
[383254449,1756894253650,-445.0,0.00014879,2]
[383254451,1756894253659,-445.0,0.0001489,2]
[383254452,1756894253669,-155.391365,0.00014901,5]
[383254454,1756894253678,-355.0,0.00014983,2]
[383254456,1756894253687,-151.0,0.00015,2]
[383254458,1756894253696,-151.0,0.00015,2]
[383254460,1756894253706,-151.0,0.00015,2]
[383254462,1756894253715,-445.0,0.00015001,2]
[383254465,1756894253724,-846.3157213,0.00015005,2]
[383254466,1756894253734,-987.46534504,0.00015035,2]
[383254468,1756894253743,-445.0,0.00015039,2]
[383254470,1756894253754,-480.0,0.00015068,2]
[383254472,1756894253764,-480.0,0.00015068,2]
[383254474,1756894253773,-689.22775007,0.00015068,2]
[383254476,1756894253783,-480.0,0.00015068,2]
[383254478,1756894253792,-480.0,0.00015068,2]
[383254481,1756894253801,-480.0,0.00015068,2]
[383254483,1756894253811,-480.0,0.00015068,2]
[383254484,1756894253820,-237.151202,0.00015068,2]
[383254486,1756894253829,-480.0,0.00015068,2]
[383254489,1756894253838,-151.0,0.00015068,2]
[383254490,1756894253848,-151.0,0.00015068,2]
[383254492,1756894253857,-480.0,0.00015068,2]
[383254495,1756894253867,-480.0,0.00015068,2]
[383254497,1756894253876,-480.0,0.00015068,2]
[383254499,1756894253885,-480.0,0.00015068,2]
[383254501,1756894253894,-480.0,0.00015068,2]
[383254503,1756894253904,-2756.91100027,0.00015068,2]
[383254505,1756894253913,-576.87661434,0.00015068,2]
[383254507,1756894253922,-480.0,0.00015068,2]
[383254509,1756894253932,-287.07,0.00015068,2]
[383254510,1756894253941,-614.90113783,0.00015068,2]
[383254512,1756894253950,-588.85776068,0.00015068,2]
[383254514,1756894253960,-480.0,0.00015068,2]
[383254516,1756894253969,-480.0,0.00015068,2]
[383254518,1756894253979,-480.0,0.00015068,2]
[383254520,1756894253988,-1909.93,0.00015068,2]
[383254522,1756894253997,-151.0,0.00015068,2]
[383254524,1756894254007,-151.0,0.00015068,2]
[383254526,1756894254016,-151.0,0.00015068,2]
[383254528,1756894254025,-811.36,0.00015068,2]
[383254530,1756894254034,-199.660106,0.00015068,2]
[383254532,1756894254044,-199.660106,0.00015068,2]
[383254534,1756894254053,-151.0,0.00015068,2]
[383254536,1756894254062,-199.660106,0.00015068,2]
[383254538,1756894254071,-211.805793,0.00015068,2]
[383254540,1756894254080,-199.660106,0.00015068,2]
[383254542,1756894254089,-151.0,0.00015068,2]
[383254545,1756894254099,-306.533199,0.00015068,2]
[383254547,1756894254110,-480.0,0.00015068,2]
[383254549,1756894254119,-306.533199,0.00015068,2]
[383254551,1756894254128,-306.533199,0.00015068,2]
[383254553,1756894254137,-306.533199,0.00015068,2]
[383254555,1756894254146,-480.0,0.00015068,2]
[383254556,1756894254155,-151.0,0.00015068,2]
[383254558,1756894254164,-621.1,0.00015068,2]
[383254560,1756894254173,-270.307559,0.00015068,2]
[383254562,1756894254183,-270.307559,0.00015068,2]
[383254564,1756894254192,-270.307559,0.00015068,2]
[383254566,1756894254201,-480.0,0.00015068,2]
[383254568,1756894254210,-270.307559,0.00015068,2]
[383254570,1756894254222,-151.0,0.00015068,2]
[383254582,1756894254323,-178.264016,0.00015068,2]
[383254584,1756894254333,-480.0,0.00015068,2]
[383254586,1756894254342,-480.0,0.00015068,2]
[383254588,1756894254351,-235.889635,0.00015068,2]
[383254590,1756894254360,-2171.39,0.00015068,2]
[383254592,1756894254370,-480.0,0.00015068,2]
[383254594,1756894254380,-151.0,0.00015068,2]
[383254596,1756894254389,-151.0,0.00015068,2]
[383254598,1756894254398,-151.0,0.00015068,2]
[383254600,1756894254407,-653.78,0.00015068,2]
[383254602,1756894254416,-236.811188,0.00015068,2]
[383254604,1756894254426,-480.0,0.00015068,2]
[383254606,1756894254435,-236.811188,0.00015068,2]
[383254629,1756894254656,-236.811188,0.00015068,2]
[383254631,1756894254665,-241.905511,0.00015068,2]
[383254633,1756894254674,-236.811188,0.00015068,2]
[383254635,1756894254683,-241.905511,0.00015068,2]
[383254637,1756894254692,-373.12,0.00015068,2]
[383254639,1756894254701,-1122.14,0.00015068,2]
[383254641,1756894254711,-480.0,0.00015068,2]
[383254643,1756894254720,-902.29,0.00015068,2]
[383254645,1756894254730,-602.66301101,0.00015068,2]
[383254647,1756894254739,-600.96,0.00015068,2]
[383254649,1756894254748,-1234.89,0.00015068,2]
[383254651,1756894254759,-151.0,0.00015068,2]
[383254653,1756894254768,-151.0,0.00015068,2]
[383254655,1756894254778,-480.0,0.00015068,2]
[383254657,1756894254792,-174.317408,0.00015068,2]
[383254659,1756894254802,-174.317408,0.00015068,2]
[383254661,1756894254811,-174.317408,0.00015068,2]
[383254663,1756894254821,-174.317408,0.00015068,2]
[383254665,1756894254835,-6196.84670085,0.00015068,2]
[383254667,1756894254846,-151.0,0.00015068,2]
[383254669,1756894254855,-480.0,0.00015068,2]
[383254671,1756894254864,-151.0,0.00015068,2]
[383254673,1756894254874,-310.524511,0.00015068,2]
[383254676,1756894254884,-310.524511,0.00015068,2]
[383254678,1756894254893,-310.524511,0.00015068,2]
[383254680,1756894254902,-151.0,0.00015068,2]
[383254682,1756894254912,-310.524511,0.00015068,2]
[383254684,1756894254920,-151.0,0.00015068,2]
[383254686,1756894254930,-151.0,0.00015068,2]
[383254688,1756894254938,-480.0,0.00015068,2]
[383254690,1756894254948,-480.0,0.00015068,2]
[383254692,1756894254957,-625.32,0.00015068,2]
[383254694,1756894254967,-480.0,0.00015068,2]
[383254696,1756894254976,-480.0,0.00015068,2]
[383254698,1756894254985,-480.0,0.00015068,2]
[383254700,1756894254994,-480.0,0.00015068,2]
[383254702,1756894255003,-480.0,0.00015068,2]
[383254704,1756894255013,-1262.9,0.00015068,2]
[383254706,1756894255022,-1423.69,0.00015068,2]
[383254708,1756894255031,-151.0,0.00015068,2]
[383254710,1756894255040,-151.0,0.00015068,2]
[383254711,1756894255050,-480.0,0.00015068,2]
[383254713,1756894255059,-480.0,0.00015068,2]
[383254715,1756894255069,-528.81,0.00015068,2]
[383254717,1756894255078,-480.0,0.00015068,2]
[383254719,1756894255087,-471.66705573,0.00015068,2]
[383254721,1756894255097,-2285.03,0.00015068,2]
[383254723,1756894255106,-518.52,0.00015068,2]
[383254725,1756894255116,-151.0,0.00015068,2]
[383254727,1756894255125,-480.0,0.00015068,2]
[383254729,1756894255134,-480.0,0.00015068,2]
[383254731,1756894255143,-690.45,0.00015068,2]
[383254733,1756894255152,-657.71,0.00015068,2]
[383254735,1756894255161,-1000.0,0.00015068,2]
[383254737,1756894255170,-1000.0,0.00015068,2]
[383254739,1756894255180,-1000.0,0.00015068,2]
[383254741,1756894255189,-1000.0,0.00015068,2]
[383254743,1756894255198,-1000.0,0.00015068,2]
[383254745,1756894255207,-1000.0,0.00015068,2]
[383254747,1756894255217,-1000.0,0.00015068,2]
[383254749,1756894255226,-830.938481,0.00015068,2]
[383254751,1756894255236,-480.0,0.00015068,2]
[383254753,1756894255245,-1022.56,0.00015068,2]
[383254755,1756894255256,-277.34632799,0.00015068,2]
[383254758,1756894255266,-557.261231,0.00015068,2]
[383254760,1756894255275,-480.0,0.00015068,2]
[383254762,1756894255287,-557.261231,0.00015068,2]
[383254764,1756894255296,-480.0,0.00015068,2]
[383254766,1756894255305,-151.0,0.00015068,2]
[383254768,1756894255315,-557.261231,0.00015068,2]
[383254770,1756894255324,-151.0,0.00015068,2]
[383254772,1756894255333,-557.261231,0.00015068,2]
[383254773,1756894255342,-151.0,0.00015068,2]
[383254775,1756894255351,-480.0,0.00015068,2]
[383254777,1756894255360,-1500.0,0.00015068,2]
[383254779,1756894255370,-275.8955373,0.00015068,2]
[383254781,1756894255379,-500.0,0.0001507,2]
[383254783,1756894255388,-151.0,0.0001507,2]
[383254785,1756894255397,-151.0,0.0001507,2]
[383254787,1756894255407,-151.0,0.0001507,2]
[383254789,1756894255416,-151.0,0.0001507,2]
[383254791,1756894255425,-155.391365,0.00015095,5]
[383254793,1756894255435,-155.391365,0.00015179,7]
[383254795,1756894255444,-86919.53016469,0.0001524,2]
[383254958,1756894256966,-490.74440769,0.00013698,2]
[383254960,1756894256975,-480.0,0.00013698,2]
[383254962,1756894256985,-464.8817647,0.00013698,2]
[383254964,1756894256994,-151.0,0.00014134,2]
[383254966,1756894257004,-151.0,0.00014134,2]
[383254968,1756894257013,-151.0,0.00014134,2]
[383254970,1756894257024,-253.345029,0.00014134,2]
[383254972,1756894257034,-151.0,0.00014246,2]
[383254974,1756894257043,-151.0,0.00014246,2]
[383254976,1756894257053,-282.23432,0.00014246,2]
[383254978,1756894257063,-151.0,0.00014246,2]
[383254980,1756894257073,-253.345029,0.00014246,2]
[383254982,1756894257083,-846.3157213,0.00015005,2]
[383254984,1756894257093,-1.32306325,0.00015068,2]
[383254987,1756894257104,-149.67693675,0.00015068,2]
[383254989,1756894257114,-151.0,0.00015068,2]
[383254991,1756894257123,-151.0,0.00015068,2]
[383254993,1756894257133,-507.70556508,0.0001524,2]
[383254995,1756894257145,-18316.32754343,0.0001524,2]
[383254997,1756894257154,-151.0,0.0001524,2]
[383254999,1756894257163,-151.0,0.0001524,2]
[383255001,1756894257172,-151.81616,0.0001524,2]
[383255003,1756894257181,-4208.1329802,0.0001524,2]
[383255005,1756894257190,-151.0,0.0001524,2]
[383255007,1756894257199,-151.0,0.0001524,2]
[383255009,1756894257208,-151.0,0.0001524,2]
[383255011,1756894257217,-224.119796,0.0001524,2]
[383255013,1756894257227,-224.119796,0.0001524,2]
[383255015,1756894257236,-224.119796,0.0001524,2]
[383255017,1756894257245,-224.119796,0.0001524,2]
[383255019,1756894257254,-151.0,0.0001524,2]
[383255021,1756894257264,-18008.393774,0.0001524,2]
[383255023,1756894257273,-151.0,0.0001524,2]
[383255025,1756894257282,-151.0,0.0001524,2]
[383255027,1756894257291,-151.0,0.0001524,2]
[383255029,1756894257300,-151.0,0.0001524,2]
[383255031,1756894257309,-174.796989,0.0001524,2]
[383255033,1756894257318,-153.983038,0.0001524,2]
[383255035,1756894257327,-151.0,0.0001524,2]
[383255037,1756894257337,-151.0,0.0001524,2]
[383255039,1756894257346,-199.660106,0.0001524,2]
[383255041,1756894257355,-199.660106,0.0001524,2]
[383255043,1756894257364,-151.0,0.0001524,2]
[383255045,1756894257373,-199.660106,0.0001524,2]
[383255047,1756894257383,-199.660104,0.0001524,2]
[383255049,1756894257391,-306.533199,0.0001524,2]
[383255051,1756894257400,-306.533199,0.0001524,2]
[383255053,1756894257409,-306.533199,0.0001524,2]
[383255055,1756894257418,-306.533199,0.0001524,2]
[383255057,1756894257428,-151.0,0.0001524,2]
[383255059,1756894257437,-270.307559,0.0001524,2]
[383255061,1756894257446,-270.307559,0.0001524,2]
[383255063,1756894257456,-270.307559,0.0001524,2]
[383255065,1756894257466,-270.307566,0.0001524,2]
[383255067,1756894257476,-151.0,0.0001524,2]
[383255069,1756894257485,-151.0,0.0001524,2]
[383255071,1756894257493,-151.0,0.0001524,2]
[383255073,1756894257502,-169.215452,0.0001524,2]
[383255074,1756894257511,-236.811188,0.0001524,2]
[383255075,1756894257520,-236.811188,0.0001524,2]
[383255076,1756894257528,-236.811188,0.0001524,2]
[383255077,1756894257537,-236.811196,0.0001524,2]
[383255078,1756894257546,-151.0,0.0001524,2]
[383255079,1756894257554,-151.0,0.0001524,2]
[383255080,1756894257563,-174.317408,0.0001524,2]
[383255081,1756894257572,-174.317408,0.0001524,2]
[383255082,1756894257580,-174.317408,0.0001524,2]
[383255083,1756894257589,-174.317412,0.0001524,2]
[383255084,1756894257597,-154.565898,0.0001524,2]
[383255085,1756894257606,-310.524511,0.0001524,2]
[383255086,1756894257615,-310.524511,0.0001524,2]
[383255087,1756894257624,-310.524511,0.0001524,2]
[383255088,1756894257632,-151.0,0.0001524,2]
[383255090,1756894257641,-310.524511,0.0001524,2]
[383255092,1756894257650,-151.0,0.0001524,2]
[383255094,1756894257659,-151.0,0.0001524,2]
[383255096,1756894257669,-157.585201,0.0001524,2]
[383255098,1756894257678,-151.0,0.0001524,2]
[383255100,1756894257687,-557.261231,0.0001524,2]
[383255102,1756894257696,-557.261231,0.0001524,2]
[383255104,1756894257705,-151.0,0.0001524,2]
[383255106,1756894257714,-557.261231,0.0001524,2]
[383255108,1756894257723,-151.0,0.0001524,2]
[383255110,1756894257732,-557.261231,0.0001524,2]
[383255112,1756894257740,-151.0,0.0001524,2]
[383255114,1756894257749,-151.0,0.0001524,2]
[383255115,1756894257758,-151.0,0.0001524,2]
[383255117,1756894257767,-1000.0,0.00015242,2]
[383255119,1756894257776,-500.10176155,0.00015266,2]
[383255122,1756894257786,-500.0,0.00015266,2]
[383255123,1756894257795,-500.0,0.00015266,2]
[383255126,1756894257805,-500.0,0.00015266,2]
[383255127,1756894257814,-500.0,0.00015267,2]
[383255129,1756894257824,-500.0,0.00015267,2]
[383255131,1756894257833,-500.0,0.00015267,2]
[383255133,1756894257842,-500.0,0.00015273,2]
[383255135,1756894257851,-500.0,0.00015273,2]
[383255137,1756894257861,-500.0,0.00015273,2]
[383255139,1756894257870,-500.0,0.00015273,2]
[383255141,1756894257879,-500.0,0.00015273,2]
[383255143,1756894257888,-579.69178809,0.00015273,2]
[383255145,1756894257897,-500.0,0.00015273,2]
[383255147,1756894257907,-500.0,0.00015273,2]
[383255149,1756894257916,-2000.0,0.00015316,2]
[383255151,1756894257925,-160.0,0.00015326,2]
[383255153,1756894257934,-281.880652,0.00015342,2]
[383255155,1756894257943,-151.0,0.00015342,2]
[383255157,1756894257952,-151.0,0.00015342,2]
[383255159,1756894257962,-480.0,0.00015342,2]
[383255161,1756894257970,-495.43,0.00015342,2]
[383255163,1756894257980,-480.0,0.00015342,2]
[383255165,1756894257989,-480.0,0.00015342,2]
[383255167,1756894257998,-480.0,0.00015342,2]
[383255169,1756894258007,-151.0,0.00015342,2]
[383255171,1756894258016,-480.0,0.00015342,2]
[383255173,1756894258025,-151.85849138,0.00015342,2]
[383255175,1756894258034,-151.0,0.00015342,2]
[383255177,1756894258044,-151.0,0.00015342,2]
[383255179,1756894258053,-151.0,0.00015342,2]
[383255181,1756894258062,-151.0,0.00015342,2]
[383255183,1756894258072,-151.0,0.00015342,2]
[383255185,1756894258082,-297.42163264,0.00015342,2]
[383255187,1756894258091,-151.0,0.00015342,2]
[383255189,1756894258100,-151.0,0.00015342,2]
[383255191,1756894258110,-480.0,0.00015342,2]
[383255203,1756894258209,-151.0,0.00015342,2]
[383255205,1756894258221,-151.0,0.00015342,2]
[383255207,1756894258230,-480.0,0.00015342,2]
[383255209,1756894258240,-480.0,0.00015342,2]
[383255211,1756894258249,-480.0,0.00015342,2]
[383255213,1756894258258,-346.94,0.00015342,2]
[383255215,1756894258267,-480.0,0.00015342,2]
[383255217,1756894258276,-480.0,0.00015342,2]
[383255219,1756894258285,-480.0,0.00015342,2]
[383255221,1756894258294,-480.0,0.00015342,2]
[383255223,1756894258305,-500.0,0.00015342,2]
[383255225,1756894258314,-151.0,0.00015342,2]
[383255227,1756894258323,-480.0,0.00015342,2]
[383255228,1756894258332,-500.0,0.00015342,2]
[383255230,1756894258341,-1909.93,0.00015342,2]
[383255232,1756894258350,-500.0,0.00015342,2]
[383255234,1756894258360,-811.36,0.00015342,2]
[383255236,1756894258369,-480.0,0.00015342,2]
[383255238,1756894258379,-576.9895002,0.00015342,2]
[383255240,1756894258388,-621.1,0.00015342,2]
[383255242,1756894258397,-480.0,0.00015342,2]
[383255244,1756894258406,-173.68275489,0.00015342,2]
[383255246,1756894258416,-480.0,0.00015342,2]
[383255248,1756894258425,-2171.39,0.00015342,2]
[383255250,1756894258435,-480.0,0.00015342,2]
[383255252,1756894258444,-653.78,0.00015342,2]
[383255255,1756894258454,-332.72,0.00015342,2]
[383255257,1756894258464,-1122.14,0.00015342,2]
[383255259,1756894258477,-480.0,0.00015342,2]
[383255260,1756894258486,-902.29,0.00015342,2]
[383255263,1756894258496,-600.96,0.00015342,2]
[383255265,1756894258505,-1234.89,0.00015342,2]
[383255267,1756894258516,-151.0,0.00015342,2]
[383255269,1756894258525,-511.21,0.00015342,2]
[383255270,1756894258535,-500.0,0.00015342,2]
[383255272,1756894258546,-480.0,0.00015342,2]
[383255274,1756894258555,-1593.59366574,0.00015342,2]
[383255276,1756894258565,-480.0,0.00015342,2]
[383255278,1756894258574,-480.0,0.00015342,2]
[383255280,1756894258583,-625.32,0.00015342,2]
[383255282,1756894258592,-480.0,0.00015342,2]
[383255284,1756894258601,-480.0,0.00015342,2]
[383255286,1756894258613,-480.0,0.00015342,2]
[383255288,1756894258622,-480.0,0.00015342,2]
[383255290,1756894258632,-480.0,0.00015342,2]
[383255292,1756894258642,-1262.9,0.00015342,2]
[383255294,1756894258652,-1423.69,0.00015342,2]
[383255296,1756894258662,-480.0,0.00015342,2]
[383255298,1756894258671,-480.0,0.00015342,2]
[383255300,1756894258680,-528.81,0.00015342,2]
[383255302,1756894258690,-480.0,0.00015342,2]
[383255304,1756894258700,-2285.03,0.00015342,2]
[383255306,1756894258709,-518.52,0.00015342,2]
[383255308,1756894258718,-480.0,0.00015342,2]
[383255310,1756894258727,-480.0,0.00015342,2]
[383255312,1756894258737,-690.45,0.00015342,2]
[383255314,1756894258746,-657.71,0.00015342,2]
[383255316,1756894258755,-480.0,0.00015342,2]
[383255318,1756894258764,-1022.56,0.00015342,2]
[383255320,1756894258774,-480.0,0.00015342,2]
[383255322,1756894258783,-168.22308689,0.00015342,2]
[383255324,1756894258792,-480.0,0.00015342,2]
[383255326,1756894258801,-720.0,0.00015368,2]
[383255328,1756894258810,-500.0,0.00015385,2]
[383255330,1756894258820,-151.0,0.000154,2]
[383255332,1756894258829,-157.91998,0.00015439,7]
[383255334,1756894258838,-155.391365,0.00015439,7]
[383255336,1756894258847,-199.58100535,0.00015616,2]
[383255338,1756894258856,-277.25881711,0.00015616,2]
[383255340,1756894258866,-151.0,0.00015616,2]
[383255342,1756894258876,-151.0,0.00015616,2]
[383255344,1756894258885,-151.93562152,0.00015616,2]
[383255346,1756894258894,-151.0,0.00015616,2]
[383255348,1756894258904,-151.0,0.00015616,2]
[383255350,1756894258913,-151.0,0.00015616,2]
[383255352,1756894258922,-500.0,0.00015616,2]
[383255354,1756894258932,-151.0,0.00015616,2]
[383255356,1756894258941,-500.0,0.00015616,2]
[383255358,1756894258951,-500.0,0.00015616,2]
[383255360,1756894258961,-151.0,0.00015616,2]
[383255362,1756894258970,-500.0,0.00015616,2]
[383255364,1756894258979,-480.0,0.00015616,2]
[383255366,1756894258988,-480.0,0.00015616,2]
[383255368,1756894258997,-480.0,0.00015616,2]
[383255370,1756894259006,-157.44,0.00015616,2]
[383255372,1756894259015,-480.0,0.00015616,2]
[383255374,1756894259024,-480.0,0.00015616,2]
[383255376,1756894259035,-419.32,0.00015616,2]
[383255378,1756894259044,-480.0,0.00015616,2]
[383255380,1756894259053,-480.0,0.00015616,2]
[383255382,1756894259064,-480.0,0.00015616,2]
[383255384,1756894259073,-480.0,0.00015616,2]
[383255386,1756894259083,-480.0,0.00015616,2]
[383255388,1756894259092,-480.0,0.00015616,2]
[383255390,1756894259101,-480.0,0.00015616,2]
[383255392,1756894259110,-1909.93,0.00015616,2]
[383255394,1756894259119,-811.36,0.00015616,2]
[383255396,1756894259128,-480.0,0.00015616,2]
[383255398,1756894259137,-621.1,0.00015616,2]
[383255400,1756894259146,-480.0,0.00015616,2]
[383255402,1756894259155,-480.0,0.00015616,2]
[383255404,1756894259164,-2171.39,0.00015616,2]
[383255406,1756894259174,-480.0,0.00015616,2]
[383255408,1756894259184,-653.78,0.00015616,2]
[383255409,1756894259201,-1122.14,0.00015616,2]
[383255412,1756894259210,-480.0,0.00015616,2]
[383255413,1756894259219,-902.29,0.00015616,2]
[383255416,1756894259229,-1234.89,0.00015616,2]
[383255417,1756894259238,-600.96,0.00015616,2]
[383255419,1756894259247,-480.0,0.00015616,2]
[383255421,1756894259257,-480.0,0.00015616,2]
[383255423,1756894259266,-480.0,0.00015616,2]
[383255426,1756894259277,-625.32,0.00015616,2]
[383255428,1756894259286,-480.0,0.00015616,2]
[383255430,1756894259296,-480.0,0.00015616,2]
[383255431,1756894259305,-480.0,0.00015616,2]
[383255433,1756894259314,-480.0,0.00015616,2]
[383255435,1756894259324,-1262.9,0.00015616,2]
[383255437,1756894259334,-1423.69,0.00015616,2]
[383255439,1756894259344,-480.0,0.00015616,2]
[383255441,1756894259354,-480.0,0.00015616,2]
[383255443,1756894259365,-528.81,0.00015616,2]
[383255445,1756894259375,-480.0,0.00015616,2]
[383255447,1756894259385,-2285.03,0.00015616,2]
[383255449,1756894259396,-518.52,0.00015616,2]
[383255451,1756894259405,-480.0,0.00015616,2]
[383255453,1756894259415,-480.0,0.00015616,2]
[383255455,1756894259425,-690.45,0.00015616,2]
[383255457,1756894259434,-657.71,0.00015616,2]
[383255459,1756894259444,-569.70605396,0.00015616,2]
[383255461,1756894259453,-1022.56,0.00015616,2]
[383255463,1756894259463,-480.0,0.00015616,2]
[383255465,1756894259474,-480.0,0.00015616,2]
[383255467,1756894259483,-2000.0,0.00015616,2]
[383255469,1756894259493,-1000.0,0.00015618,2]
[383255471,1756894259502,-249.346119,0.00015631,2]
[383255473,1756894259512,-151.0,0.00015631,2]
[383255475,1756894259521,-151.0,0.00015631,2]
[383255477,1756894259530,-224.119796,0.00015631,2]
[383255479,1756894259539,-224.119796,0.00015631,2]
[383255481,1756894259548,-224.119796,0.00015631,2]
[383255483,1756894259557,-224.119793,0.00015631,2]
[383255485,1756894259566,-500.0,0.00015785,2]
[383255487,1756894259576,-189.0459062,0.00015785,2]
[383255489,1756894259585,-500.0,0.00015785,2]
[383255491,1756894259594,-317.10641517,0.00015785,2]
[383255494,1756894259604,-1000.0,0.00015813,2]
[383255495,1756894259613,-1000.0,0.00015813,2]
[383255498,1756894259623,-1000.0,0.00015813,2]
[383255499,1756894259633,-1000.0,0.00015815,2]
[383255502,1756894259642,-1000.0,0.00015815,2]
[383255504,1756894259651,-1000.0,0.00015815,2]
[383255506,1756894259660,-151.0,0.00015815,2]
[383255508,1756894259670,-281.312631,0.00015815,2]
[383255510,1756894259678,-557.261231,0.00015815,2]
[383255512,1756894259687,-557.261231,0.00015815,2]
[383255514,1756894259697,-151.0,0.00015815,2]
[383255515,1756894259706,-557.261231,0.00015815,2]
[383255516,1756894259715,-185.007786,0.00015815,2]
[383255517,1756894259724,-557.26123672,0.00015815,2]
[383255518,1756894259733,-151.0,0.00015815,2]
[383255519,1756894259741,-151.0,0.00015815,2]
[383255520,1756894259750,-241.512295,0.00015815,2]
[383255521,1756894259761,-1000.0,0.00015821,2]
[383255522,1756894259770,-1000.0,0.00015821,2]
[383255523,1756894259778,-1000.0,0.00015821,2]
[383255524,1756894259787,-1000.0,0.00015821,2]
[383255525,1756894259796,-1000.0,0.00015821,2]
[383255526,1756894259805,-1000.0,0.00015821,2]
[383255527,1756894259814,-1000.0,0.00015821,2]
[383255528,1756894259823,-310.524511,0.00015821,2]
[383255529,1756894259831,-310.524511,0.00015821,2]
[383255530,1756894259923,-310.524511,0.00015821,2]
[383255531,1756894259933,-151.0,0.00015821,2]
[383255532,1756894259942,-310.524511,0.00015821,2]
[383255533,1756894259953,-151.0,0.00015821,2]
[383255534,1756894259962,-151.0,0.00015821,2]
[383255535,1756894259971,-151.0,0.00015821,2]
[383255536,1756894259980,-2500.0,0.00015864,2]
[383255537,1756894259989,-260.0,0.00015874,2]
[383255538,1756894259998,-151.0,0.0001589,2]
[383255539,1756894260008,-151.0,0.0001589,2]
[383255540,1756894260017,-151.0,0.0001589,2]
[383255542,1756894260026,-349.0,0.0001589,2]
[383255543,1756894260036,-361.42748391,0.0001589,2]